bitfinex/quotes_SOLUSD_20251031
["timestamp","ask_amount","ask_price","bid_price","bid_amount"]
[1761933744461,40.99669797,185.99,185.97,1.99999999]
[1761933744661,46.52466396,185.99,185.95,1.99999999]
[1761933744869,46.52466396,185.99,185.96,1.99999999]
[1761933745089,40.99669797,185.99,185.96,1.99999999]
[1761933745650,35.62,185.99,185.96,1.99999999]
[1761933745887,24.24,185.99,185.98,1.99999999]
[1761933746193,24.24,185.99,185.98,7.52796598]
[1761933746357,0.1,186.0,185.98,8.20796598]
[1761933746558,0.1,186.0,185.99,13.58459913]
[1761933746800,11.48,186.0,185.99,13.58459913]
[1761933747165,11.48,186.0,185.99,8.20796598]
[1761933747356,11.48,186.0,185.99,13.58459913]
[1761933748392,11.48,186.0,185.99,8.05663314]
[1761933748559,11.48,186.0,185.99,13.58459913]
[1761933749058,0.1,186.0,185.99,13.58459913]
[1761933749594,11.48,186.0,185.99,13.58459913]
[1761933749808,11.48,186.0,185.99,2.67999999]
[1761933749966,11.48,186.0,185.99,1.99999999]
[1761933751073,0.1,186.0,185.99,1.99999999]
[1761933751279,11.48,186.0,185.99,2.67999999]
[1761933751482,11.48,186.0,185.99,1.99999999]
[1761933752392,11.48,186.0,185.98,1.99999999]
[1761933752567,11.48,186.0,185.99,1.99999999]
[1761933752766,17.00796599,186.0,185.99,1.99999999]
[1761933752981,0.1,186.0,185.99,2.67999999]
[1761933753167,11.46,186.0,185.99,2.67999999]
[1761933753669,11.46,186.0,185.99,1.99999999]
[1761933754271,11.46,186.0,185.99,2.67999999]
[1761933754469,0.1,186.01,186.0,1.99999999]
[1761933754682,11.46,186.01,186.0,8.20796598]
[1761933755000,11.46,186.01,186.0,2.67999999]
[1761933756319,11.46,186.01,186.0,8.05634407]
[1761933756471,11.46,186.01,186.0,13.58431006]
[1761933758115,0.1,186.01,186.0,13.58431006]
[1761933758281,11.46,186.01,186.0,13.58431006]
[1761933759092,11.46,186.01,186.0,2.67999999]
[1761933759292,11.46,186.01,186.0,8.05634407]
[1761933760328,11.46,186.01,186.0,1.99999999]
[1761933760795,11.44,186.01,186.0,1.99999999]
[1761933761116,0.1,186.01,186.0,1.99999999]
[1761933761289,11.44,186.01,186.0,1.99999999]
[1761933763087,11.55408586,186.01,185.99,1.99999999]
[1761933763288,16.86796599,186.0,185.99,1.99999999]
[1761933763591,16.86796599,186.0,185.98,1.99999999]
[1761933763592,17.41796599,186.0,185.98,1.99999999]
[1761933763823,5.52796599,185.99,185.97,1.99999999]
[1761933764018,5.52796599,185.98,185.97,1.99999999]
[1761933764180,5.52796599,185.99,185.98,1.99999999]
[1761933764386,5.52796599,185.99,185.97,1.99999999]
[1761933764696,5.52796599,185.99,185.98,1.99999999]
[1761933765520,5.52796599,185.99,185.94,6.0580353]
[1761933765521,5.52796599,185.99,185.97,1.99999999]
[1761933766705,16.84796599,185.98,185.97,1.99999999]
[1761933766901,22.7749948,185.98,185.96,1.99999999]
[1761933767125,5.52796599,185.97,185.96,1.99999999]
[1761933767299,5.52796599,185.97,185.95,1.99999999]
[1761933767300,6.07796599,185.97,185.95,1.99999999]
[1761933767501,29.74796599,185.96,185.94,1.99999999]
[1761933767698,29.74796599,185.96,185.92,1.99999999]
[1761933767699,16.84796599,185.95,185.92,1.99999999]
[1761933767903,5.52796599,185.94,185.93,1.99999999]
[1761933768200,16.84796599,185.94,185.93,1.99999999]
[1761933768404,11.32,185.94,185.93,1.99999999]
[1761933768636,5.52796599,185.95,185.94,1.99999999]
[1761933768801,16.84796599,185.95,185.94,1.99999999]
[1761933769598,5.52796599,185.95,185.94,1.99999999]
[1761933769803,16.84796599,185.95,185.94,1.99999999]
[1761933770235,16.84796599,185.95,185.91,0.68]
[1761933770236,5.52796599,185.95,185.93,1.99999999]
[1761933770540,5.52796599,185.94,185.93,1.99999999]
[1761933771037,16.84796599,185.95,185.93,1.99999999]
[1761933771414,22.22581081,185.95,185.93,1.99999999]
[1761933771629,16.69784482,185.95,185.94,1.99999999]
[1761933771833,22.22581081,185.95,185.93,1.99999999]
[1761933772135,5.52796599,185.94,185.93,1.99999999]
[1761933772335,5.52796599,185.94,185.92,1.99999999]
[1761933772515,5.52796599,185.93,185.92,1.99999999]
[1761933772718,5.52796599,185.93,185.91,1.99999999]
[1761933772926,16.82796599,185.92,185.91,1.99999999]
[1761933773426,5.52796599,185.93,185.92,1.99999999]
[1761933773730,16.82796599,185.93,185.92,1.99999999]
[1761933775206,24.77,185.96,185.93,1.99999999]
[1761933775405,5.52796599,185.94,185.93,1.99999999]
[1761933776037,11.3,185.94,185.93,1.99999999]
[1761933776249,24.22,185.96,185.94,1.99999999]
[1761933776431,11.28,185.95,185.94,1.99999999]
[1761933776606,11.3,185.95,185.94,1.99999999]
[1761933776814,11.28,185.95,185.94,1.99999999]
[1761933777147,24.22,185.96,185.94,1.99999999]
[1761933777312,24.22,185.96,185.95,1.99999999]
[1761933777512,35.5,185.96,185.95,1.99999999]
[1761933777723,24.22,185.96,185.95,1.99999999]
[1761933777916,35.5,185.96,185.95,1.99999999]
[1761933778320,41.02796599,185.96,185.95,1.99999999]
[1761933778709,24.22,185.96,185.95,1.99999999]
[1761933778944,35.5,185.96,185.95,1.99999999]
[1761933779523,46.40546652,185.96,185.95,1.99999999]
[1761933779739,46.95546652,185.96,185.94,1.99999999]
[1761933779913,6.07796599,185.95,185.91,1.99999999]
[1761933780113,5.52796599,185.93,185.91,1.99999999]
[1761933780429,11.28,185.92,185.91,1.99999999]
[1761933781511,29.74796599,185.96,185.91,2.66999999]
[1761933781743,11.28,185.95,185.94,1.99999999]
[1761933782615,24.22,185.96,185.95,1.99999999]
[1761933782834,35.5,185.96,185.95,1.99999999]
[1761933783121,46.95546652,185.96,185.91,1.99999999]
[1761933783330,5.52796599,185.95,185.93,1.99999999]
[1761933783535,11.28,185.94,185.91,2.66999999]
[1761933783725,11.28,185.94,185.93,1.99999999]
[1761933783927,16.80796599,185.94,185.93,1.99999999]
[1761933784121,5.52796599,185.94,185.93,1.99999999]
[1761933784319,16.80796599,185.94,185.93,1.99999999]
[1761933784525,5.52796599,185.94,185.92,1.99999999]
[1761933784838,16.80796599,185.94,185.92,1.99999999]
[1761933785414,16.65810858,185.94,185.91,1.99999999]
[1761933785750,5.52796599,185.93,185.91,1.99999999]
[1761933786048,11.26,185.92,185.91,1.99999999]
[1761933786249,16.78796599,185.92,185.91,1.99999999]
[1761933786420,17.33796599,185.92,185.88,1.99999999]
[1761933786613,5.52796599,185.89,185.88,1.99999999]
[1761933786844,16.78796599,185.89,185.88,1.99999999]
[1761933787342,25.04560949,185.89,185.88,1.99999999]
[1761933787856,25.59560949,185.89,185.85,1.99999999]
[1761933788151,8.40608397,185.88,185.87,1.99999999]
[1761933788520,25.04560949,185.89,185.87,1.99999999]
[1761933788740,20.87632314,185.92,185.88,1.99999999]
[1761933788920,20.592,185.92,185.89,2.66999999]
[1761933789116,11.26,185.91,185.9,1.99999999]
[1761933789814,25.04503077,185.91,185.89,1.99999999]
[1761933790530,19.66608397,185.91,185.89,1.99999999]
[1761933791125,11.26,185.91,185.9,1.99999999]
[1761933791314,16.6389468,185.91,185.9,1.99999999]
[1761933791935,5.37778972,185.95,185.9,2.66999999]
[1761933792136,31.852,185.94,185.92,1.99999999]
[1761933792747,20.592,185.94,185.92,1.99999999]
[1761933792941,20.592,185.94,185.93,0.67]
[1761933793243,31.852,185.94,185.93,0.67]
[1761933793543,5.37665045,185.99,185.96,1.99999999]
[1761933793729,43.90608397,185.98,185.95,1.99999999]
[1761933794050,8.40608397,185.97,185.95,1.99999999]
[1761933794230,11.26,185.96,185.95,1.99999999]
[1761933794643,11.26,185.96,185.94,1.99999999]
[1761933794828,19.66608397,185.96,185.94,1.99999999]
[1761933795041,19.66608397,185.96,185.95,1.99999999]
[1761933795240,19.66608397,185.96,185.94,1.99999999]
[1761933795440,8.40608397,185.95,185.93,1.99999999]
[1761933795748,11.26,185.94,185.93,1.99999999]
[1761933795921,8.40608397,185.96,185.93,2.66999999]
[1761933796122,24.24,185.98,185.96,1.99999999]
[1761933796428,24.24,185.98,185.97,1.99999999]
[1761933796628,43.90608397,185.98,185.97,1.99999999]
[1761933796839,49.28300621,185.98,185.97,1.99999999]
[1761933797322,20.592,185.95,185.92,1.99999999]
[1761933797527,13.78445217,185.93,185.92,1.99999999]
[1761933802367,13.78445217,185.93,185.9,1.99999999]
[1761933802647,11.79,185.92,185.88,1.99999999]
[1761933802850,11.79,185.92,185.89,1.99999999]
[1761933803235,5.3789468,185.91,185.89,1.99999999]
[1761933803543,11.24,185.9,185.89,1.99999999]
[1761933803743,11.24,185.9,185.88,1.99999999]
[1761933803935,19.64608397,185.9,185.89,1.99999999]
[1761933805247,25.02532011,185.9,185.89,1.99999999]
[1761933805440,49.26532011,185.9,185.89,1.99999999]
[1761933805632,49.26532011,185.9,185.87,1.99999999]
[1761933805832,8.40608397,185.88,185.87,1.99999999]
[1761933806046,19.62608397,185.88,185.87,1.99999999]
[1761933807837,25.0058989,185.88,185.86,1.99999999]
[1761933808054,25.0058989,185.88,185.81,8.40608397]
[1761933808055,8.95608397,185.87,185.82,1.99999999]
[1761933808263,11.22,185.86,185.83,1.99999999]
[1761933808456,8.40608397,185.88,185.85,1.99999999]
[1761933808768,8.40608397,185.86,185.85,1.99999999]
[1761933809142,8.40608397,185.86,185.84,1.99999999]
[1761933809362,19.62608397,185.85,185.84,1.99999999]
[1761933809960,11.22,185.85,185.84,2.69999999]
[1761933810950,8.40608397,185.86,185.85,1.99999999]
[1761933811357,25.00647781,185.86,185.85,1.99999999]
[1761933811963,25.00647781,185.86,185.84,1.99999999]
[1761933812262,8.40608397,185.85,185.83,1.99999999]
[1761933812471,19.62608397,185.84,185.83,1.99999999]
[1761933812641,19.62608397,185.84,185.79,1.99999999]
[1761933812841,11.22,185.84,185.8,1.99999999]
[1761933813242,0.83432314,185.83,185.77,2.69999999]
[1761933813443,5.38184166,185.81,185.77,1.99999999]
[1761933813662,20.592,185.78,185.76,1.99999999]
[1761933813894,11.22,185.77,185.76,1.99999999]
[1761933814083,19.62608397,185.77,185.76,1.99999999]
[1761933814246,8.40608397,185.81,185.77,1.99999999]
[1761933814442,5.38160213,185.82,185.77,1.99999999]
[1761933814443,8.40608397,185.78,185.77,1.99999999]
[1761933814661,19.64608397,185.78,185.77,1.99999999]
[1761933815146,11.24,185.78,185.77,1.99999999]
[1761933815343,25.0287947,185.78,185.77,1.99999999]
[1761933815548,19.64608397,185.78,185.77,1.99999999]
[1761933815955,25.0287947,185.78,185.77,1.99999999]
[1761933816480,39.03557153,185.78,185.74,1.99999999]
[1761933816653,39.03557153,185.78,185.72,2.19999999]
[1761933816654,8.40608397,185.75,185.72,2.19999999]
[1761933816852,8.40608397,185.73,185.72,2.19999999]
[1761933817084,43.88608397,185.73,185.72,2.19999999]
[1761933817383,43.88608397,185.73,185.72,0.2]
[1761933817578,49.27024377,185.73,185.72,0.2]
[1761933818270,35.48,185.73,185.72,2.89999999]
[1761933818673,7.54135846,185.79,185.75,1.99999999]
[1761933818860,43.90608397,185.78,185.76,1.99999999]
[1761933819656,8.40608397,185.77,185.76,1.99999999]
[1761933820767,8.40608397,185.77,185.75,1.99999999]
[1761933820971,11.24,185.76,185.73,1.99999999]
[1761933821180,8.40608397,185.74,185.73,1.99999999]
[1761933821484,19.64608397,185.74,185.73,1.99999999]
[1761933821692,11.24,185.74,185.73,1.99999999]
[1761933822566,11.24,185.74,185.73,2.69999999]
[1761933823781,8.40608397,185.77,185.73,2.69999999]
[1761933823975,11.24,185.76,185.74,2.69999999]
[1761933824176,11.22,185.75,185.74,2.69999999]
[1761933824475,11.22,185.75,185.74,1.99999999]
[1761933824793,11.24,185.75,185.74,1.99999999]
[1761933824996,8.40608397,185.76,185.74,2.69999999]
[1761933825367,11.22,185.75,185.74,2.69999999]
[1761933826564,8.40608397,185.76,185.74,2.69999999]
[1761933826887,29.64277735,185.78,185.75,2.69999999]
[1761933826888,8.40608397,185.77,185.75,2.69999999]
[1761933827186,11.22,185.76,185.75,2.69999999]
[1761933827866,8.40608397,185.77,185.75,2.69999999]
[1761933828183,11.22,185.76,185.75,2.69999999]
[1761933828869,19.62608397,185.76,185.75,2.69999999]
[1761933829557,19.62608397,185.76,185.75,1.99999999]
[1761933830080,19.62608397,185.76,185.75,2.69999999]
[1761933830481,11.22,185.76,185.75,2.69999999]
[1761933830869,8.40608397,185.77,185.75,2.69999999]
[1761933831071,24.26,185.78,185.77,1.99999999]
[1761933831273,23.54,185.78,185.77,6.0963292]
[1761933831591,34.76,185.78,185.77,6.0963292]
[1761933831886,23.54,185.78,185.77,2.69999999]
[1761933832060,34.76,185.78,185.77,2.69999999]
[1761933832492,34.76,185.78,185.77,1.99999999]
[1761933834468,43.53903994,185.78,185.77,1.99999999]
[1761933834664,38.15632921,185.78,185.77,1.99999999]
[1761933835190,43.53903994,185.78,185.77,1.99999999]
[1761933835391,38.15632921,185.78,185.77,1.99999999]
[1761933836200,44.19903994,185.78,185.77,1.99999999]
[1761933836370,44.19903994,185.78,185.75,1.99999999]
[1761933836564,0.66,185.77,185.75,1.99999999]
[1761933836764,14.59632921,185.76,185.75,1.99999999]
[1761933837274,14.59632921,185.76,185.74,1.99999999]
[1761933837475,11.86,185.76,185.75,1.99999999]
[1761933837692,11.2,185.76,185.74,1.99999999]
[1761933837881,11.86,185.76,185.74,1.99999999]
[1761933838078,11.2,185.76,185.75,1.99999999]
[1761933838285,11.2,185.76,185.74,1.99999999]
[1761933838499,11.2,185.76,185.75,1.99999999]
[1761933838801,14.59632921,185.76,185.75,1.99999999]
[1761933839001,19.97961947,185.76,185.75,1.99999999]
[1761933839180,20.63961947,185.76,185.74,1.99999999]
[1761933839379,4.05632921,185.75,185.73,1.99999999]
[1761933839578,14.59632921,185.74,185.73,1.99999999]
[1761933839900,11.2,185.74,185.73,1.99999999]
[1761933840284,3.39632921,185.74,185.73,1.99999999]
[1761933840491,14.59632921,185.74,185.73,1.99999999]
[1761933840679,20.64019913,185.74,185.72,0.2]
[1761933840879,3.39632921,185.73,185.72,0.2]
[1761933841572,3.39632921,185.74,185.72,2.19999999]
[1761933841772,14.59632921,185.73,185.72,2.89999999]
[1761933841968,14.59632921,185.73,185.72,2.19999999]
[1761933842193,3.39632921,185.73,185.72,2.19999999]
[1761933842474,14.59632921,185.73,185.72,2.19999999]
[1761933843202,20.64048901,185.73,185.72,0.2]
[1761933843588,19.98048901,185.73,185.72,0.2]
[1761933844075,16.5841598,185.73,185.72,0.2]
[1761933844279,16.5841598,185.73,185.72,2.19999999]
[1761933844495,19.98048901,185.73,185.72,2.19999999]
[1761933844698,8.78048901,185.73,185.72,2.19999999]
[1761933844900,19.96048901,185.73,185.72,2.19999999]
[1761933845285,19.96048901,185.73,185.72,0.2]
[1761933846208,16.5641598,185.73,185.72,0.2]
[1761933846505,19.96048901,185.73,185.72,2.19999999]
[1761933847008,19.96048901,185.73,185.72,0.2]
[1761933848106,19.96048901,185.73,185.72,2.19999999]
[1761933849002,19.96048901,185.73,185.72,0.2]
[1761933849223,20.592,185.69,185.57,0.2]
[1761933849420,2.18009811,185.62,185.58,0.7]
[1761933849624,34.03209811,185.62,185.59,0.7]
[1761933849908,31.852,185.62,185.59,0.7]
[1761933850108,34.03209811,185.62,185.59,0.7]
[1761933850306,34.03209811,185.62,185.57,0.9]
[1761933850508,44.24741051,185.62,185.57,0.9]
[1761933851049,49.63476101,185.62,185.57,0.9]
[1761933851216,49.63476101,185.62,185.58,0.7]
[1761933852036,30.38082769,185.58,185.57,0.2]
[1761933852217,10.07315083,185.57,185.53,0.2]
[1761933852408,12.91324894,185.57,185.53,0.2]
[1761933853101,0.14216157,185.56,185.53,0.2]
[1761933853321,2.18009811,185.54,185.53,0.2]
[1761933853917,9.78882769,185.53,185.52,0.2]
[1761933854109,2.18009811,185.48,185.47,0.2]
[1761933854311,13.48009811,185.48,185.47,0.2]
[1761933854634,13.48009811,185.48,185.47,0.9]
[1761933855454,16.85642387,185.48,185.47,0.9]
[1761933856422,11.3,185.48,185.47,0.9]
[1761933856627,5.55642387,185.49,185.47,0.9]
[1761933856809,11.3,185.48,185.47,0.2]
[1761933857304,11.3,185.48,185.47,0.9]
[1761933857506,11.28,185.48,185.47,0.9]
[1761933859040,5.55642387,185.49,185.47,0.9]
[1761933859206,11.28,185.48,185.47,0.2]
[1761933859409,5.55642387,185.5,185.47,0.2]
[1761933859618,11.28,185.49,185.47,0.2]
[1761933859834,11.28,185.49,185.48,0.7]
[1761933860441,5.38824694,185.59,185.48,6.25642387]
[1761933860746,5.55642387,185.55,185.5,5.39061839]
[1761933860911,16.83642387,185.54,185.5,5.39061839]
[1761933861236,11.28,185.54,185.51,0.7]
[1761933861624,16.83642387,185.54,185.51,0.7]
[1761933862212,5.55642387,185.52,185.47,0.2]
[1761933862435,5.55642387,185.5,185.48,0.66]
[1761933862611,11.26,185.49,185.48,0.66]
[1761933863216,11.28,185.49,185.48,6.21642387]
[1761933864042,5.55642387,185.55,185.49,5.3911262]
[1761933864252,10.94589337,185.55,185.5,0.66]
[1761933864409,11.28,185.54,185.5,0.66]
[1761933864607,11.28,185.54,185.5,6.21642387]
[1761933864813,11.28,185.53,185.5,6.21642387]
[1761933865132,11.28,185.53,185.51,0.66]
[1761933866838,5.55642387,185.52,185.47,11.14809895]
[1761933867039,5.55642387,185.52,185.48,0.7]
[1761933867540,39.6206028,185.57,185.48,0.7]
[1761933867541,0.14216157,185.57,185.48,0.7]
[1761933867744,20.592,185.55,185.5,5.55642387]
[1761933867918,16.81642387,185.56,185.48,0.7]
[1761933868121,11.26,185.55,185.51,5.55642387]
[1761933868322,10.94530602,185.57,185.5,10.94701252]
[1761933868532,11.26,185.56,185.51,5.55642387]
[1761933868828,11.26,185.56,185.51,6.25642387]
[1761933869144,16.81642387,185.56,185.52,0.7]
[1761933869354,11.26,185.56,185.52,0.7]
[1761933869720,24.26,185.58,185.53,5.55642387]
[1761933870053,16.81642387,185.57,185.52,0.7]
[1761933870345,16.81642387,185.57,185.52,5.39019144]
[1761933870531,16.81642387,185.57,185.53,0.7]
[1761933870853,11.26,185.56,185.54,5.55642387]
[1761933871350,11.26,185.56,185.55,0.7]
[1761933871522,16.81642387,185.56,185.53,0.7]
[1761933871938,16.81642387,185.56,185.51,0.7]
[1761933872331,11.26,185.56,185.51,6.25642387]
[1761933872832,11.26,185.56,185.52,0.7]
[1761933873956,11.26,185.56,185.54,5.55642387]
[1761933874339,11.26,185.56,185.55,0.7]
[1761933875229,24.26,185.58,185.56,5.38909247]
[1761933875547,11.26,185.57,185.55,2.17878026]
[1761933875752,11.26,185.57,185.53,2.17878026]
[1761933876051,2.17878026,185.56,185.5,22.77078026]
[1761933876225,2.17878026,185.56,185.52,0.7]
[1761933876547,0.67,185.56,185.49,20.592]
[1761933876749,14.10878026,185.57,185.51,0.7]
[1761933877136,14.10878026,185.57,185.51,2.87878026]
[1761933877642,11.26,185.57,185.53,2.17878026]
[1761933878149,11.24,185.56,185.54,2.87878026]
[1761933878322,11.24,185.56,185.55,0.7]
[1761933878832,11.24,185.56,185.54,2.17878026]
[1761933879142,11.24,185.56,185.55,0.7]
[1761933879339,11.24,185.56,185.54,2.87878026]
[1761933879547,11.24,185.56,185.55,0.7]
[1761933879734,24.26,185.58,185.55,2.87878026]
[1761933879921,11.24,185.57,185.55,0.7]
[1761933880629,11.24,185.57,185.53,2.87878026]
[1761933881428,11.24,185.57,185.54,0.7]
[1761933881631,29.64852557,185.58,185.54,0.7]
[1761933881829,11.24,185.57,185.54,0.7]
[1761933883528,29.64852557,185.58,185.54,0.7]
[1761933883851,16.62909504,185.56,185.53,0.7]
[1761933884038,16.62909504,185.56,185.51,2.17878026]
[1761933884435,16.62909504,185.56,185.52,2.87878026]
[1761933884635,11.24,185.56,185.52,2.87878026]
[1761933884835,11.24,185.56,185.54,2.17878026]
[1761933885355,11.24,185.56,185.54,0.7]
[1761933886526,11.24,185.56,185.52,2.87878026]
[1761933886725,11.24,185.56,185.53,0.7]
[1761933887256,11.24,185.56,185.53,2.87878026]
[1761933887634,11.24,185.56,185.54,0.7]
[1761933889766,11.24,185.56,185.52,2.87878026]
[1761933889970,11.24,185.56,185.52,8.26902933]
[1761933890132,11.24,185.56,185.53,2.87878026]
[1761933890333,11.24,185.56,185.54,0.7]
[1761933891428,11.24,185.56,185.54,2.87878026]
[1761933892062,24.26,185.58,185.55,2.17878026]
[1761933892237,24.26,185.58,185.57,2.17878026]
[1761933892433,35.46,185.58,185.57,2.87878026]
[1761933892924,35.46,185.58,185.57,0.7]
[1761933893153,35.46,185.58,185.53,2.87878026]
[1761933893339,38.30878026,185.58,185.53,0.7]
[1761933894138,43.02729367,185.58,185.51,2.17878026]
[1761933894361,2.84878026,185.57,185.5,8.26953335]
[1761933894664,11.2,185.56,185.51,2.87878026]
[1761933895031,11.2,185.56,185.52,0.7]
[1761933895234,2.17878026,185.54,185.47,3.09878026]
[1761933895431,11.2,185.53,185.47,3.09878026]
[1761933895645,11.2,185.53,185.49,2.17878026]
[1761933896144,16.59002154,185.53,185.49,2.89878026]
[1761933896472,16.59002154,185.53,185.49,0.72]
[1761933896835,16.59002154,185.53,185.48,2.17878026]
[1761933897035,16.59002154,185.53,185.49,0.72]
[1761933897639,0.67,185.52,185.47,3.09878026]
[1761933897965,0.67,185.52,185.47,0.2]
[1761933898130,5.39054498,185.51,185.47,0.2]
[1761933898331,11.2,185.5,185.47,0.2]
[1761933899259,24.28,185.49,185.47,0.92]
[1761933900235,24.28,185.49,185.47,0.2]
[1761933900436,24.28,185.49,185.47,0.92]
[1761933900662,24.28,185.49,185.47,3.09878026]
[1761933900848,24.28,185.49,185.47,2.37878026]
[1761933901365,24.28,185.49,185.47,0.92]
[1761933901566,24.28,185.49,185.47,3.09878026]
[1761933901942,24.28,185.49,185.47,2.37878026]
[1761933902147,24.28,185.49,185.48,2.89878026]
[1761933902369,35.46,185.49,185.48,2.89878026]
[1761933902673,35.46,185.49,185.48,0.72]
[1761933902875,35.46,185.49,185.48,2.89878026]
[1761933903863,24.28,185.49,185.48,8.29019712]
[1761933904066,35.46,185.49,185.48,8.29019712]
[1761933904247,35.46,185.49,185.48,2.89878026]
[1761933904973,35.46,185.49,185.48,8.29019712]
[1761933905890,35.46,185.49,185.48,17.00531816]
[1761933906755,24.28,185.49,185.48,17.00531816]
[1761933907085,35.46,185.49,185.48,8.29019712]
[1761933907572,24.28,185.49,185.48,8.29019712]
[1761933907741,35.46,185.49,185.48,8.29019712]
[1761933907944,24.28,185.49,185.48,8.29019712]
[1761933908154,35.46,185.49,185.48,8.29019712]
[1761933909358,24.28,185.49,185.48,17.00531816]
[1761933909668,35.46,185.49,185.48,17.00531816]
[1761933910456,35.46,185.49,185.48,8.29019712]
[1761933910665,35.46,185.49,185.48,17.00531816]
[1761933911344,35.46,185.49,185.48,9.51725752]
[1761933911851,35.46,185.49,185.48,12.92309818]
[1761933912362,3.40584066,185.59,185.48,12.92309818]
[1761933912363,24.3,185.56,185.51,20.592]
[1761933912541,24.3,185.56,185.55,3.40584066]
[1761933912742,35.48,185.56,185.55,3.40584066]
[1761933913280,36.15,185.56,185.49,0.72]
[1761933913568,41.53909303,185.56,185.51,3.40584066]
[1761933913868,44.94493369,185.56,185.5,6.11074543]
[1761933914043,0.67,185.55,185.5,3.40584066]
[1761933914240,11.18,185.54,185.5,3.40584066]
[1761933914466,11.18,185.54,185.5,4.12584066]
[1761933914852,11.18,185.54,185.51,4.12584066]
[1761933915350,11.18,185.54,185.5,3.40584066]
[1761933915559,11.18,185.54,185.5,8.79664218]
[1761933915758,11.85,185.54,185.5,3.40584066]
[1761933915955,11.18,185.54,185.5,3.40584066]
[1761933916165,11.18,185.54,185.5,4.12584066]
[1761933916368,11.18,185.54,185.51,4.12584066]
[1761933917950,11.18,185.54,185.5,3.40584066]
[1761933918353,16.56980848,185.54,185.49,3.40584066]
[1761933918546,16.56980848,185.54,185.47,0.2]
[1761933918547,3.40584066,185.51,185.47,0.2]
[1761933918766,11.16,185.5,185.47,0.2]
[1761933918981,11.83,185.5,185.47,0.2]
[1761933919154,24.28,185.49,185.47,0.2]
[1761933919355,28.35584066,185.49,185.47,0.2]
[1761933919679,4.07584066,185.48,185.47,0.2]
[1761933919978,9.46725752,185.48,185.47,0.2]
[1761933920157,20.62725752,185.48,185.47,0.2]
[1761933921057,11.16,185.48,185.47,0.2]
[1761933921458,11.83,185.48,185.47,0.2]
[1761933921959,17.22141686,185.48,185.47,0.2]
[1761933922369,20.62725752,185.48,185.47,0.2]
[1761933923574,15.23584066,185.48,185.47,0.2]
[1761933925281,11.16,185.48,185.47,0.2]
[1761933925800,16.55141686,185.48,185.47,0.2]
[1761933926883,11.16,185.48,185.47,0.2]
[1761933927583,24.28,185.49,185.47,4.32584066]
[1761933927795,11.16,185.48,185.47,0.92]
[1761933927964,11.16,185.48,185.47,0.2]
[1761933928659,11.16,185.48,185.47,0.92]
[1761933928860,11.16,185.48,185.47,0.2]
[1761933929078,11.16,185.48,185.47,0.92]
[1761933929387,11.16,185.48,185.47,0.2]
[1761933929586,11.16,185.48,185.47,0.92]
[1761933929786,11.16,185.48,185.47,4.32584066]
[1761933930085,11.16,185.48,185.47,0.92]
[1761933930298,11.16,185.48,185.47,0.2]
[1761933930589,14.56584066,185.48,185.47,0.2]
[1761933930773,19.95725752,185.48,185.47,0.2]
[1761933930974,16.55141686,185.48,185.47,0.2]
[1761933932074,24.28,185.49,185.47,0.92]
[1761933932275,11.16,185.48,185.47,0.92]
[1761933932585,11.16,185.48,185.47,4.32584066]
[1761933932790,11.16,185.48,185.47,0.92]
[1761933933661,16.55141686,185.48,185.47,0.2]
[1761933933862,20.62725752,185.48,185.47,0.2]
[1761933934082,17.22141686,185.48,185.47,0.2]
[1761933934286,16.55141686,185.48,185.47,0.2]
[1761933935087,11.16,185.48,185.47,0.2]
[1761933936573,11.18,185.48,185.47,0.2]
[1761933937292,11.18,185.48,185.47,0.92]
[1761933937465,11.18,185.48,185.47,0.2]
[1761933937976,11.18,185.48,185.47,0.92]
[1761933938191,11.18,185.48,185.47,4.32584066]
[1761933938490,11.18,185.48,185.47,0.2]
[1761933938860,24.28,185.49,185.47,0.2]